bitfinex/quotes_SOLUSD_20241118
["timestamp","ask_amount","ask_price","bid_price","bid_amount"]
[1731962486306,0.09367462,238.84,238.76,131.18296662]
[1731962486796,23.99604862,238.84,238.76,20.18296662]
[1731962488175,28.05745862,238.84,238.78,20.18296662]
[1731962488362,0.09367462,238.84,238.78,20.18296662]
[1731962488891,0.09367462,238.84,238.77,20.18296662]
[1731962488892,23.87055862,238.84,238.77,20.18296662]
[1731962489066,0.09367462,238.82,238.77,20.18296662]
[1731962489465,0.09367462,238.82,238.75,20.18296662]
[1731962489686,23.87055862,238.82,238.75,20.18296662]
[1731962489996,20.18296662,238.79,238.7,24.37226662]
[1731962490197,23.87055862,238.76,238.7,20.18296662]
[1731962490882,23.87055862,238.76,238.56,20.18296662]
[1731962490883,0.12549,238.73,238.66,20.18296662]
[1731962491086,23.902374,238.73,238.66,20.18296662]
[1731962491289,0.09367462,238.72,238.66,20.18296662]
[1731962491585,0.09367462,238.7,238.62,20.18296662]
[1731962491778,20.27664124,238.68,238.6,20.18296662]
[1731962491976,0.09367462,238.68,238.6,20.18296662]
[1731962492179,0.09367462,238.66,238.62,20.18296662]
[1731962492403,23.776884,238.67,238.62,20.18296662]
[1731962493501,23.776884,238.69,238.64,20.18296662]
[1731962493704,23.776884,238.67,238.59,20.18296662]
[1731962493916,0.09367462,238.66,238.57,4.1916]
[1731962494075,0.09367462,238.68,238.48,4.1932]
[1731962494076,23.776884,238.61,238.48,4.1932]
[1731962494276,0.09367462,238.6,238.53,20.18296662]
[1731962494699,23.776884,238.63,238.57,20.18296662]
[1731962494898,23.776884,238.63,238.55,20.18296662]
[1731962495498,23.776884,238.69,238.61,20.18296662]
[1731962495671,23.776884,238.69,238.58,4.1914]
[1731962495672,23.776884,238.69,238.65,20.18296662]
[1731962495870,18.43,238.7,238.65,20.18296662]
[1731962496080,4.1885,238.75,238.67,20.18296662]
[1731962496577,0.09367462,238.74,238.67,20.18296662]
[1731962496777,4.1885,238.75,238.67,20.18296662]
[1731962497287,20.18296662,238.76,238.67,20.18296662]
[1731962497492,24.37126662,238.76,238.67,24.37266662]
[1731962498084,0.09367462,238.75,238.67,24.37266662]
[1731962498286,24.37126662,238.76,238.63,111.0]
[1731962498287,0.09367462,238.73,238.65,20.18296662]
[1731962498804,23.87055862,238.73,238.65,20.18296662]
[1731962498988,23.87055862,238.73,238.56,20.68296662]
[1731962498989,23.776884,238.7,238.62,20.18296662]
[1731962499193,23.776884,238.7,238.64,20.18296662]
[1731962499503,23.776884,238.72,238.67,20.18296662]
[1731962499894,23.776884,238.72,238.65,20.18296662]
[1731962500284,43.95985062,238.72,238.63,20.18296662]
[1731962500486,23.776884,238.7,238.63,20.18296662]
[1731962500692,23.776884,238.7,238.65,20.18296662]
[1731962500999,20.18296662,238.74,238.63,20.18296662]
[1731962501000,23.87055862,238.73,238.63,20.18296662]
[1731962501200,0.09367462,238.71,238.63,20.18296662]
[1731962501391,23.87055862,238.71,238.63,20.18296662]
[1731962501719,23.87055862,238.69,238.61,20.18296662]
[1731962502000,23.87055862,238.71,238.63,20.18296662]
[1731962502377,0.09367462,238.69,238.63,20.18296662]
[1731962502574,23.87055862,238.69,238.61,20.18296662]
[1731962502800,20.18296662,238.68,238.59,20.18296662]
[1731962502983,20.18296662,238.68,238.57,24.37456662]
[1731962502984,23.87055862,238.67,238.57,24.37456662]
[1731962503184,24.027864,238.58,238.42,25.54981567]
[1731962503393,23.776884,238.52,238.46,20.18296662]
[1731962504401,4.31729,238.56,238.46,24.37646662]
[1731962504606,0.34465462,238.54,238.46,20.18296662]
[1731962505106,0.34465462,238.54,238.44,24.37676662]
[1731962505107,0.21916462,238.54,238.44,24.37676662]
[1731962505313,0.21916462,238.54,238.46,20.18296662]
[1731962505478,23.776884,238.55,238.48,20.18296662]
[1731962505681,23.776884,238.57,238.48,20.18296662]
[1731962505897,0.09367462,238.56,238.48,20.18296662]
[1731962506087,0.09367462,238.56,238.5,20.18296662]
[1731962506287,23.776884,238.57,238.52,20.18296662]
[1731962506605,23.776884,238.59,238.52,20.18296662]
[1731962506825,0.09367462,238.57,238.5,20.18296662]
[1731962507102,23.776884,238.57,238.5,20.18296662]
[1731962507278,23.87055862,238.59,238.52,20.18296662]
[1731962507480,28.06195862,238.59,238.52,20.18296662]
[1731962507707,28.06195862,238.59,238.54,20.18296662]
[1731962507887,28.06195862,238.59,238.52,20.18296662]
[1731962508090,27.967884,238.61,238.52,20.18296662]
[1731962508496,20.18296662,238.58,238.5,20.18296662]
[1731962508810,0.09367462,238.53,238.44,20.18296662]
[1731962509017,0.21916462,238.51,238.42,20.18296662]
[1731962509183,23.87055862,238.49,238.42,20.18296662]
[1731962509611,23.776884,238.47,238.42,20.18296662]
[1731962509792,23.87055862,238.49,238.42,24.37716662]
[1731962510588,23.776884,238.48,238.42,20.18296662]
[1731962510907,23.776884,238.48,238.44,20.18296662]
[1731962511411,23.776884,238.53,238.46,20.18296662]
[1731962511599,23.776884,238.53,238.48,20.18296662]
[1731962511796,0.09367462,238.52,238.4,20.0]
[1731962512003,0.09367462,238.52,238.46,20.18296662]
[1731962512911,0.09367462,238.5,238.43,24.37696662]
[1731962513209,0.09367462,238.46,238.41,20.18296662]
[1731962513410,0.09367462,238.46,238.39,20.18296662]
[1731962514315,0.09367462,238.46,238.41,20.18296662]
[1731962514909,23.776884,238.47,238.41,20.18296662]
[1731962515212,20.18296662,238.5,238.43,20.18296662]
[1731962515213,0.09367462,238.49,238.43,20.18296662]
[1731962516020,0.09367462,238.49,238.41,20.18296662]
[1731962516218,4.28667462,238.49,238.41,24.37726662]
[1731962516419,23.776884,238.48,238.41,24.37726662]
[1731962517432,0.09367462,238.43,238.35,20.18296662]
[1731962517594,0.09367462,238.41,238.33,20.18296662]
[1731962517801,23.87055862,238.41,238.33,20.18296662]
[1731962517996,23.776884,238.41,238.36,20.18296662]
[1731962518418,23.776884,238.41,238.33,4.1958]
[1731962518419,23.776884,238.46,238.39,20.18296662]
[1731962518622,20.18296662,238.45,238.37,20.18296662]
[1731962518791,23.776884,238.44,238.37,20.18296662]
[1731962519120,0.09367462,238.43,238.37,20.18296662]
[1731962519520,0.09367462,238.43,238.35,20.18296662]
[1731962519821,4.28777462,238.43,238.35,20.18296662]
[1731962521219,4.28777462,238.43,238.35,24.37826662]
[1731962521426,23.776884,238.44,238.37,20.18296662]
[1731962521620,23.776884,238.46,238.37,20.18296662]
[1731962522116,0.09367462,238.45,238.37,20.18296662]
[1731962522617,4.1933,238.48,238.39,20.18296662]
[1731962522825,0.09367462,238.47,238.39,20.18296662]
[1731962523224,20.18296662,238.51,238.41,20.18296662]
[1731962523529,20.18296662,238.53,238.45,20.18296662]
[1731962523746,20.18296662,238.55,238.45,20.18296662]
[1731962524401,20.18296662,238.55,238.47,20.18296662]
[1731962525625,24.37496662,238.55,238.48,4.1932]
[1731962526028,23.87055862,238.52,238.45,20.18296662]
[1731962527035,23.776884,238.54,238.45,20.18296662]
[1731962527616,27.969084,238.54,238.46,4.1935]
[1731962527807,20.18296662,238.55,238.47,20.18296662]
[1731962528330,23.87055862,238.54,238.47,20.18296662]
[1731962528833,24.37496662,238.55,238.47,20.18296662]
[1731962529220,4.1912,238.59,238.51,20.18296662]
[1731962529532,0.09367462,238.56,238.48,4.1932]
[1731962530038,0.09367462,238.56,238.49,20.18296662]
[1731962530331,0.09367462,238.56,238.49,24.37576662]
[1731962530517,23.776884,238.56,238.49,24.37576662]
[1731962531412,20.18296662,238.61,238.53,20.18296662]
[1731962531633,20.18296662,238.63,238.53,20.18296662]
[1731962531853,20.18296662,238.63,238.49,4.1928]
[1731962531854,4.1904,238.64,238.57,20.18296662]
[1731962532410,4.1904,238.64,238.57,24.37446662]
[1731962534738,20.18296662,238.65,238.57,24.37446662]
[1731962534940,20.9437,238.74,238.57,24.37446662]
[1731962534941,20.18296662,238.67,238.59,20.18296662]
[1731962535234,23.776884,238.67,238.59,20.18296662]
[1731962535425,21.4311,238.77,238.57,4.1915]
[1731962535426,20.18296662,238.71,238.63,20.18296662]
[1731962535615,20.18296662,238.73,238.63,20.18296662]
[1731962535820,20.18296662,238.71,238.63,20.18296662]
[1731962536227,0.09367462,238.7,238.61,20.18296662]
[1731962536438,20.18296662,238.69,238.61,20.18296662]
[1731962536613,24.37256662,238.69,238.62,4.1907]
[1731962536936,24.37256662,238.69,238.61,24.37376662]
[1731962537318,20.18296662,238.65,238.51,9.2066]
[1731962537623,4.1896,238.69,238.6,20.18296662]
[1731962537822,4.1896,238.69,238.6,131.18296662]
[1731962538232,23.87055862,238.69,238.62,20.18296662]
[1731962538422,20.18296662,238.74,238.66,20.18296662]
[1731962538617,20.18296662,238.76,238.68,20.18296662]
[1731962538824,20.18296662,238.78,238.69,4.1895]
[1731962539229,20.18296662,238.78,238.7,20.18296662]
[1731962539435,4.1872,238.82,238.72,20.18296662]
[1731962539436,20.18296662,238.82,238.72,20.18296662]
[1731962539623,4.1858,238.9,238.77,20.18296662]
[1731962539828,20.18296662,238.85,238.77,20.18296662]
[1731962540030,20.18296662,238.8,238.69,4.1895]
[1731962540327,20.18296662,238.8,238.71,20.18296662]
[1731962540525,20.18296662,238.78,238.69,24.37246662]
[1731962541624,20.18296662,238.78,238.69,135.37246662]
[1731962541819,24.37066662,238.8,238.71,20.18296662]
[1731962542026,20.18296662,238.8,238.71,20.18296662]
[1731962542545,20.18296662,238.82,238.73,20.18296662]
[1731962542854,20.18296662,238.84,238.75,20.18296662]
[1731962543031,20.18296662,238.84,238.76,4.1883]
[1731962544557,20.18296662,238.8,238.71,24.37206662]
[1731962544725,20.18296662,238.77,238.69,20.18296662]
[1731962545133,43.95985062,238.79,238.69,20.18296662]
[1731962545345,20.18296662,238.77,238.67,24.37276662]
[1731962545528,23.87055862,238.74,238.67,20.18296662]
[1731962545734,23.87055862,238.74,238.66,12.5793]
[1731962546150,23.87055862,238.74,238.67,20.18296662]
[1731962546555,20.18296662,238.77,238.68,4.1897]
[1731962547026,20.18296662,238.84,238.74,20.18296662]
[1731962547459,0.09367462,238.81,238.72,20.18296662]
[1731962548445,0.09367462,238.81,238.72,131.18296662]
[1731962548645,0.09367462,238.81,238.73,4.1888]
[1731962548950,23.87055862,238.81,238.73,4.1888]
[1731962549459,28.05795862,238.81,238.73,4.1888]
[1731962549958,28.05795862,238.81,238.74,20.18296662]
[1731962550266,20.18296662,238.84,238.76,20.18296662]
[1731962550440,20.18296662,238.82,238.74,20.18296662]
[1731962550957,8.7436,238.91,238.76,20.18296662]
[1731962550958,20.18296662,238.84,238.76,20.18296662]
[1731962551434,20.18296662,238.86,238.76,20.18296662]
[1731962551635,10.4614,238.98,238.81,20.18296662]
[1731962551837,20.18296662,238.92,238.83,20.18296662]
[1731962552134,20.18296662,238.95,238.85,20.18296662]
[1731962552469,0.09367462,238.94,238.87,20.18296662]
[1731962552752,4.1848,238.96,238.87,20.18296662]
[1731962552955,4.1848,238.96,238.87,24.36926662]
[1731962553542,0.09367462,238.95,238.87,24.36926662]
[1731962553741,4.1848,238.96,238.87,24.36926662]
[1731962553958,43.95985062,238.95,238.85,24.36956662]
[1731962554667,0.09367462,238.94,238.85,24.36956662]
[1731962555061,4.27887462,238.94,238.85,24.36956662]
[1731962555457,4.27887462,238.94,238.87,20.18296662]
[1731962555659,4.27887462,238.94,238.85,4.1866]
[1731962555660,4.1845,238.98,238.91,20.18296662]
[1731962555865,4.1834,239.04,238.93,20.18296662]
[1731962556069,20.18296662,239.02,238.93,20.18296662]
[1731962556571,4.1834,239.04,238.95,20.18296662]
[1731962556759,4.1834,239.04,238.85,4.6866]
[1731962556760,4.1834,239.04,238.97,20.18296662]
[1731962556961,0.09367462,239.03,238.97,20.18296662]
[1731962557353,0.09367462,239.03,238.95,20.18296662]
[1731962557960,23.87055862,239.03,238.95,20.18296662]
[1731962558161,4.1837,239.02,238.95,20.18296662]
[1731962559149,23.87055862,239.01,238.93,20.18296662]
[1731962559367,0.09367462,238.97,238.89,20.18296662]
[1731962559557,23.87055862,238.97,238.89,20.18296662]
[1731962559957,20.18296662,238.98,238.89,20.18296662]
[1731962560158,4.1848,238.96,238.89,20.18296662]
[1731962560359,4.1848,238.96,238.81,9.0186]
[1731962560360,0.5,239.48,239.12,17.9032]
[1731962560676,0.04682033,239.52,239.47,0.12549]
[1731962560872,0.04682033,239.57,239.45,0.12549]
[1731962560873,14.58486,239.84,239.62,0.5]
[1731962561086,0.8895862,239.76,239.68,0.5]
[1731962561251,0.8895862,239.76,239.75,0.5]
[1731962561458,0.8895862,239.76,239.75,124.00522585]
[1731962561681,0.8895862,239.76,239.75,85.26830724]
[1731962561977,0.4682033,240.0,239.75,105.45127386]
[1731962562283,0.04682032,240.0,239.99,32.47201004]
[1731962563774,0.04682032,240.0,239.97,32.47201004]
[1731962563975,0.04682032,240.0,239.99,32.97201004]
[1731962564769,0.04682032,240.0,239.99,56.74889404]
[1731962565170,0.04682032,240.0,239.99,32.97201004]
[1731962565560,0.04682032,240.0,239.99,0.5]
[1731962566679,0.04682032,240.0,239.94,32.47201004]
[1731962566973,0.04682032,240.0,239.95,0.83318352]
[1731962567676,0.04682032,240.0,239.96,32.47201004]
[1731962567879,0.04682032,240.0,239.97,0.83307685]
[1731962568383,0.04682032,240.0,239.98,36.63901004]
[1731962568555,0.04682032,240.0,239.99,0.83300621]
[1731962568754,0.04682032,240.0,239.99,7.45055005]
[1731962570470,0.04682032,240.0,239.99,6.61754384]
[1731962570671,32.51883036,240.0,239.95,4.1674]
[1731962571573,0.12549,239.99,239.95,4.1674]
[1731962571977,0.12549,239.99,239.92,23.902374]
[1731962572281,0.12549,239.99,239.93,20.83323491]
[1731962572575,0.17231032,240.0,239.93,20.83323491]
[1731962572876,32.64432036,240.0,239.93,20.83323491]
[1731962573780,32.47201004,239.94,239.89,4.1685]
[1731962573960,32.47201004,239.93,239.89,4.1685]
[1731962574154,0.5,239.98,239.89,4.1685]
[1731962574155,32.47201004,239.95,239.89,4.1685]
[1731962574551,0.5,239.89,239.81,32.47201004]
[1731962574772,0.12549,239.86,239.8,4.1701]
[1731962575071,32.47201004,239.91,239.81,32.56568466]
[1731962575395,1.0,239.93,239.86,4.169]
[1731962575396,0.12549,239.92,239.86,4.169]
[1731962576965,32.97201004,239.93,239.92,4.87451]
[1731962577687,33.47201004,239.93,239.92,4.87451]
[1731962578386,32.97201004,239.93,239.92,4.87451]
[1731962578685,0.04682032,240.0,239.93,4.1678]
[1731962578892,0.54682032,240.0,239.93,5.00110364]
[1731962579423,0.04682032,240.0,239.96,32.47201004]
[1731962579764,0.04682032,240.0,239.97,0.83317049]
[1731962580258,0.04682032,240.0,239.94,20.12549]
[1731962580465,32.47201004,239.96,239.92,4.87451]
[1731962580665,0.12549,239.95,239.92,4.87451]
[1731962582067,0.12549,239.93,239.92,4.87451]
[1731962582285,25.82930767,239.93,239.92,4.87451]
[1731962582590,0.5,239.8,239.74,4.171]
[1731962582894,0.5,239.81,239.74,4.171]
[1731962583195,32.47201004,239.79,239.74,4.171]
[1731962583566,32.97201004,239.81,239.74,24.171]
[1731962583768,0.5,239.81,239.74,24.171]
[1731962583995,0.5,239.82,239.75,32.47201004]
[1731962584199,0.5,239.79,239.74,4.171]
[1731962584568,0.5,239.8,239.67,32.47201004]
[1731962584569,0.5,239.74,239.67,32.47201004]
[1731962584985,0.12549,239.75,239.67,32.47201004]
[1731962585296,0.12549,239.69,239.65,36.64471004]
[1731962585500,0.12549,239.69,239.65,4.1727]
[1731962586400,0.62549,239.69,239.65,36.64471004]
[1731962586601,0.5,239.69,239.67,32.47201004]
[1731962586940,0.62549,239.68,239.61,32.47201004]
[1731962587083,0.12549,239.68,239.61,32.47201004]
[1731962587401,0.62549,239.68,239.63,32.47201004]
[1731962588297,0.62549,239.68,239.64,4.1729]
[1731962588479,0.62549,239.68,239.54,52.0]
[1731962588480,0.5,239.64,239.59,36.64561004]
[1731962588881,1.12549,239.68,239.59,36.64561004]
[1731962589074,0.12549,239.68,239.63,32.47201004]
[1731962589501,0.12549,239.7,239.63,32.47201004]
[1731962589678,0.5,239.67,239.64,20.0]
[1731962590073,0.12549,239.7,239.64,20.0]
[1731962590302,0.5,239.65,239.55,23.902374]
[1731962590488,0.5,239.65,239.58,32.47201004]
[1731962591421,0.5,239.65,239.59,4.1737]
[1731962591706,32.47201004,239.64,239.59,4.1737]
[1731962591923,32.47201004,239.63,239.57,4.174]
[1731962592088,32.97201004,239.65,239.57,4.174]
[1731962592417,1.0,239.6,239.57,4.174]
[1731962592615,0.62549,239.57,239.53,6.69496175]
[1731962592916,0.5,239.54,239.49,4.1755]
[1731962593085,0.5,239.51,239.43,32.47201004]
[1731962593284,0.5,239.52,239.45,36.64811004]
[1731962593487,0.5,239.53,239.45,32.47201004]
[1731962593792,0.5,239.51,239.45,32.47201004]
[1731962594451,0.5,239.51,239.44,20.0]
[1731962594708,0.12549,239.57,239.47,32.47201004]
[1731962594709,32.47201004,239.56,239.47,32.47201004]
[1731962595007,32.47201004,239.6,239.51,32.47201004]
[1731962595312,32.47201004,239.6,239.45,23.902374]
[1731962595313,0.5,239.6,239.57,32.47201004]
[1731962595506,0.5,239.56,239.51,32.47201004]
[1731962595684,0.5,239.52,239.47,36.64781004]
[1731962596205,0.5,239.52,239.47,4.1758]
[1731962596498,0.5,239.54,239.47,36.64781004]
[1731962597889,0.5,239.54,239.47,4.1758]
[1731962597890,1.0,239.51,239.47,4.1758]
[1731962598294,0.5,239.49,239.47,4.1758]
[1731962599102,0.5,239.55,239.47,36.64781004]
[1731962599303,1.0,239.53,239.47,36.64781004]
[1731962599526,1.0,239.55,239.47,36.64781004]
[1731962599703,1.0,239.53,239.47,36.64781004]
[1731962600020,1.0,239.51,239.47,4.1758]
[1731962600690,1.0,239.49,239.47,4.1758]
[1731962601202,32.47201004,239.48,239.47,4.1758]
[1731962601595,1.0,239.49,239.47,4.1758]
[1731962601813,1.0,239.49,239.42,20.0]
[1731962602021,0.5,239.51,239.44,20.0]
[1731962602221,0.5,239.51,239.45,32.47201004]
[1731962602418,1.0,239.51,239.45,32.47201004]
[1731962603019,0.5,239.48,239.44,20.0]
[1731962603341,0.5,239.48,239.43,36.64851004]
[1731962603342,0.5,239.46,239.43,4.1765]
[1731962603503,0.5,239.44,239.43,4.1765]
[1731962604015,1.0,239.44,239.4,4.1771]
[1731962604596,1.0,239.44,239.41,32.47201004]
[1731962604991,1.0,239.44,239.4,4.1771]
[1731962605210,0.5,239.49,239.42,32.47201004]
[1731962605609,0.5,239.47,239.42,32.47201004]
[1731962606120,1.0,239.49,239.43,4.1765]
[1731962606325,1.0,239.49,239.44,32.47201004]
[1731962606494,0.5,239.46,239.43,4.1765]
[1731962606694,0.5,239.44,239.43,4.1765]
[1731962606908,1.0,239.44,239.43,4.1765]
[1731962607824,1.0,239.44,239.39,4.1772]
[1731962608027,1.0,239.41,239.37,4.1776]
[1731962608599,0.5,239.43,239.37,4.1776]
[1731962608817,0.5,239.43,239.38,32.47201004]
[1731962609119,0.5,239.42,239.4,32.47201004]
[1731962609304,0.5,239.43,239.4,32.47201004]
[1731962609501,0.5,239.43,239.38,32.47201004]
[1731962610236,0.5,239.41,239.39,4.1772]
[1731962610602,1.0,239.41,239.39,4.1772]
[1731962610929,1.0,239.41,239.34,6.73496175]
[1731962610930,0.5,239.37,239.35,4.1779]
[1731962611714,1.0,239.41,239.35,4.1779]
[1731962611915,0.5,239.41,239.36,32.47201004]
[1731962612131,0.5,239.38,239.36,32.47201004]
[1731962612301,0.5,239.38,239.37,4.1776]
[1731962612903,1.0,239.38,239.37,4.1776]
[1731962613728,0.5,239.36,239.35,4.1779]
[1731962614318,0.5,239.36,239.34,0.04]
[1731962614920,0.5,239.36,239.34,32.51201004]
[1731962615742,0.5,239.36,239.34,0.04]
[1731962617332,0.62549,239.35,239.34,0.04]
[1731962618213,20.72632438,239.35,239.34,0.04]
[1731962618415,45.43014205,239.35,239.34,0.04]
[1731962618639,45.55563205,239.35,239.34,0.04]
[1731962619143,20.72632438,239.35,239.34,0.04]
[1731962619344,21.65325805,239.35,239.34,0.04]
[1731962619845,45.43014205,239.35,239.34,0.04]
[1731962620344,45.55563205,239.35,239.34,0.04]
[1731962620520,0.5,239.23,239.21,4.1804]
[1731962621250,0.5,239.22,239.21,4.1804]
[1731962621434,0.5,239.2,239.18,20.10083438]
[1731962621745,1.0,239.2,239.19,5.1741]
[1731962622645,1.0,239.2,239.19,0.9935]
[1731962624923,0.5,239.2,239.19,0.9935]
[1731962625124,0.5,239.22,239.2,4.1806]
[1731962625531,0.5,239.21,239.2,4.1806]
[1731962626735,0.5,239.25,239.2,4.1806]
[1731962626932,0.5,239.22,239.21,20.10083438]
[1731962627233,1.0,239.23,239.2,4.1806]
[1731962627440,0.5,239.21,239.19,0.9935]
[1731962627643,0.5,239.2,239.19,0.9935]
[1731962628360,0.62549,239.2,239.19,0.9935]
[1731962628522,44.50320838,239.2,239.19,0.9935]
[1731962630227,44.596883,239.2,239.19,0.9935]
[1731962630932,44.722373,239.2,239.19,0.9935]
[1731962631855,24.402374,239.2,239.19,0.9935]
[1731962632945,44.50320838,239.2,239.19,0.9935]
[1731962634555,11.73427462,239.19,239.15,0.48503853]
[1731962634765,0.5,239.0,238.92,20.10083438]
[1731962635053,0.12549,239.02,238.92,20.10083438]
[1731962635054,20.72632438,239.02,238.92,24.28633438]
[1731962635236,20.10083438,239.02,238.92,24.28633438]
[1731962635437,20.60083438,239.02,238.92,24.28633438]
[1731962635652,0.5,239.0,238.92,24.28633438]
[1731962636034,0.5,239.05,238.97,20.0]
[1731962636234,0.5,239.03,238.97,20.0]
[1731962637655,0.5,239.03,238.98,4.1844]
[1731962638229,20.10083438,239.04,238.98,4.1844]
[1731962638230,0.5,239.01,238.98,4.1844]
[1731962639147,0.5,238.99,238.98,4.1844]
[1731962641039,0.5,238.99,238.95,20.0]
[1731962641762,0.5,239.05,238.98,20.10083438]
[1731962641931,0.5,239.02,238.98,20.10083438]
[1731962642138,0.5,239.0,238.99,20.0]
[1731962642355,0.5,239.04,238.99,20.0]
[1731962642659,10.4529,239.17,238.99,20.10083438]
[1731962642660,0.5,239.0,238.99,20.10083438]
[1731962642835,0.5,239.0,238.98,20.0]
[1731962643032,0.5,239.0,238.94,20.10083438]
[1731962643259,0.5,238.96,238.95,4.1849]
[1731962643559,0.12549,238.97,238.95,4.1849]
[1731962643560,0.5,238.97,238.95,4.1849]
[1731962643737,0.5,238.98,238.96,20.10083438]
[1731962644257,0.5,239.0,238.96,20.10083438]
[1731962644466,0.12549,239.01,238.96,20.10083438]
[1731962644754,0.5,239.02,238.99,20.0]
[1731962644982,0.0400001,239.03,239.01,20.0]
[1731962645137,0.0400001,239.03,239.02,4.1837]
[1731962646445,0.0400001,239.03,239.02,24.28453438]
[1731962646647,0.0400001,239.03,239.02,44.28453438]
[1731962647271,0.5400001,239.03,239.02,4.1837]
[1731962647558,1.1654901,239.03,239.02,4.1837]
[1731962647954,24.9423741,239.03,239.02,4.1837]
[1731962648155,24.9423741,239.03,239.0,20.0]
[1731962648365,23.776884,239.02,239.0,24.1841]
[1731962649944,0.0400001,239.03,239.02,20.0]
[1731962650158,0.5400001,239.03,239.02,20.0]
[1731962650360,0.0400001,239.03,239.02,24.1837]
[1731962650757,0.0400001,239.03,239.02,4.1837]
[1731962650971,0.0400001,239.03,239.02,24.1837]
[1731962654053,1e-07,239.03,239.02,24.1837]
[1731962654956,1e-07,239.03,239.02,4.1837]
[1731962655144,1e-07,239.03,239.02,24.1837]
[1731962655343,0.5000001,239.03,239.02,4.1837]
[1731962655775,0.5000001,239.03,238.99,20.10083438]
[1731962656148,0.5000001,239.03,239.01,20.10083438]
[1731962656354,1e-07,239.03,239.01,20.10083438]
[1731962657164,0.5000001,239.03,239.01,20.10083438]
[1731962657377,1e-07,239.03,239.02,20.0]
[1731962657958,1e-07,239.03,239.02,24.1837]
[1731962660153,1e-07,239.03,239.02,76.1837]
[1731962660474,1e-07,239.03,239.02,96.28453438]
[1731962661754,1e-07,239.03,239.02,97.96466703]
[1731962662977,1e-07,239.03,239.02,45.96466703]
[1731962664063,1e-07,239.03,239.02,4.1837]
[1731962664261,0.5000001,239.03,239.02,4.1837]
[1731962665481,1e-07,239.03,239.02,24.28453438]
[1731962666384,1e-07,239.03,239.02,44.28453438]
[1731962668474,1e-07,239.03,239.02,16.77013084]
[1731962668678,1e-07,239.03,239.02,36.77013084]
[1731962670173,1e-07,239.03,239.02,88.77013084]
[1731962670573,1e-07,239.03,239.02,36.77013084]
[1731962670761,1e-07,239.03,239.02,49.35656168]
[1731962671086,1e-07,239.03,239.02,36.77013084]
[1731962672660,1e-07,239.03,239.02,38.48297589]
[1731962673500,1e-07,239.03,239.02,90.48297589]
[1731962674499,0.5,239.16,239.03,20.21916462]
[1731962674670,0.5,239.15,239.11,12.58643084]
[1731962675091,0.5,239.15,239.12,20.0]
[1731962675279,0.5,239.13,239.12,20.0]
[1731962675678,1.0,239.15,239.12,12.58643084]
[1731962676397,1.0,239.15,239.13,4.1818]
[1731962677499,0.5,239.1,239.06,12.58643084]
[1731962677797,0.5,239.08,239.06,12.58643084]
[1731962678393,0.5,239.08,239.07,4.1828]
[1731962679182,0.5,239.08,239.07,24.1828]
[1731962680610,0.5,239.08,239.07,4.1828]
[1731962682188,0.5,239.05,239.04,4.1834]
[1731962682384,0.5,239.04,239.01,12.58643084]
[1731962682594,0.5,239.04,238.87,32.3492]
[1731962682595,0.5,238.77,238.7,16.77573084]
[1731962682783,0.12549,238.86,238.7,16.77573084]
[1731962682784,0.5,238.74,238.7,16.77573084]
[1731962682984,0.5,238.78,238.72,12.58643084]
[1731962683216,0.5,238.77,238.74,12.58643084]
[1731962683502,0.12549,238.86,238.7,4.1893]
[1731962683503,0.5,238.8,238.76,12.58643084]
[1731962683711,0.5,238.79,238.77,4.1881]
[1731962683881,0.5,238.78,238.77,4.1881]
[1731962685385,0.5,238.78,238.75,20.0]
[1731962686689,0.5,238.78,238.77,12.58643084]
[1731962686895,0.5,238.78,238.76,20.0]
[1731962687506,0.83325905,238.91,238.68,14.25387534]
[1731962687507,0.5,238.85,238.78,24.1879]
[1731962687711,0.5,238.88,238.84,20.0]
[1731962688094,0.5,238.85,238.84,20.0]
[1731962688296,0.5,238.85,238.83,12.58643084]
[1731962688722,0.5,238.85,238.84,20.0]
[1731962689418,0.5,238.86,238.84,20.0]
[1731962689618,0.5,238.87,238.84,20.0]
[1731962689619,0.5,238.87,238.84,12.58643084]